Workbook

Sheet ВОР
F1: «УТВЕРЖДАЮ»
F2: Директор ДЭиБПД
F3: АО «Коломенский Завод»
F4: ______________ Степанкевич В.С.
F7: от «___» ________ 2025_ г.
A9: Ведомость объемов работ Объект: "Реконструкция Цеха М14. Устройство фундаментов под оборудование и плиты пола (в осях Г-Нх1-19)" на территории АО "Коломенский завод", расположенного по адресу: Московская область, г. Коломна, ул. Партизан 42
A11: № | B11: Вид работ | C11: Ед. измер | D11: Объем | E11: Формула расчета | F11: Примечание
B12: Система электроснабжения. Шинопроводы
B13: Демонтажные работы:
A14: 1 | B14: Демонтаж существующих шинопроводов | C14: м | D14: 338.5
B15: Монтаж шинопровода:
A16: 2 | B16: Монтаж шинопровлда ШП1_1600A_AL_IP55_4W_(3P+N+PE(КОРПУС)) | C16: м | D16: =312+54+1.39+0.94+1+1+1.04+5.5+1.9+2.84+5.85+5.2+1.71+1.29+1.85+1.78+1.36 -> 400.65 | F16: - KXA 17504-B-STD-1600 A-КРЕПЕЖНЫЙ-СТАНДАРТНОГО РАЗМЕРА-4W - 90 м; - KXA 17504-P-STD-1600 A-ВСТАВНОЙ-СТАНДАРТНОГО РАЗМЕРА-4W - 330 м - 34 KXA 17504-B-X-1600 A-КРЕПЕЖНЫЙ-НЕСТАНДАРТНОГО РАЗМЕРА-4W (x=720мм)- 1 шт; - KXA 17504-B-B11-1600 A-КРЕПЕЖНЫЙ-БЛОК ПИТАНИЯ-4W - 2 шт; - KXA 17504-B-BO-1600 A-КРЕПЕЖНЫЙ-БЛОК ПИТАНИЯ С СЕРЕДИНЫ-4W - 1; - KXA 17504-B-D-1600 A-КРЕПЕЖНЫЙ-УГЛОВАЯ ВНИЗ-4W - 4 шт; - KXA 17504-B-L-1600 A-КРЕПЕЖНЫЙ-УГЛОВАЯ ВЛЕВО-4W - 7 шт; - KXA 17504-B-L-1600 A-КРЕПЕЖНЫЙ-УГЛОВАЯ ВЛЕВО-4W (с=477мм) - 1шт; - KXA 17504-B-LH-1600 A-КРЕПЕЖНЫЙ-Z-ОБРАЗНАЯ ГОРИЗОНТАЛЬНАЯ ВЛЕВО-4W (offset=350мм) - 1 шт; - KXA 17504-B-R-1600 A-КРЕПЕЖНЫЙ-УГЛОВАЯ ВПРАВО-4W - 8 шт; - KXA 17504-B-R-1600 A-КРЕПЕЖНЫЙ-УГЛОВАЯ ВПРАВО-4W (c=607мм) - 1шт; - KXA 17504-B-TYL-1600 A-КРЕПЕЖНЫЙ-Т-ОБРАЗНАЯ ЛЕВАЯ-4W - 2 шт; - KXA 17504-B-TYL-1600 A-КРЕПЕЖНЫЙ-Т-ОБРАЗНАЯ ЛЕВАЯ-4W (с=670мм) - 1шт; - KXA 17504-B-TYL-1600 A-КРЕПЕЖНЫЙ-Т-ОБРАЗНАЯ ЛЕВАЯ-4W (с=700мм) - 1 шт; - KXA 17504-B-U-1600 A-КРЕПЕЖНЫЙ-УГЛОВАЯ ВВЕРХ-4W - 6 шт; - KXA 17504-B-X-1600 A-КРЕПЕЖНЫЙ-НЕСТАНДАРТНОГО РАЗМЕРА-4W (x=1000мм) - 1шт; - KXA 17504-B-X-1600 A-КРЕПЕЖНЫЙ-НЕСТАНДАРТНОГО РАЗМЕРА-4W (x=1050мм) -1 шт; - KXA 17504-B-X-1600 A-КРЕПЕЖНЫЙ-НЕСТАНДАРТНОГО РАЗМЕРА-4W (x=1060мм) - 1 шт; - KXA 17504-B-X-1600 A-КРЕПЕЖНЫЙ-НЕСТАНДАРТНОГО РАЗМЕРА-4W (x=1190мм) - 1 шт; - KXA 17504-B-X-1600 A-КРЕПЕЖНЫЙ-НЕСТАНДАРТНОГО РАЗМЕРА-4W (x=1450мм) - 1 шт; - KXA 17504-B-X-1600 A-КРЕПЕЖНЫЙ-НЕСТАНДАРТНОГО РАЗМЕРА-4W (x=1490мм) - 1 шт; - KXA 17504-B-X-1600 A-КРЕПЕЖНЫЙ-НЕСТАНДАРТНОГО РАЗМЕРА-4W (x=1500мм) - 2 шт; - KXA 17504-B-X-1600 A-КРЕПЕЖНЫЙ-НЕСТАНДАРТНОГО РАЗМЕРА-4W (x=1600мм) - 2 шт; - KXA 17504-B-X-1600 A-КРЕПЕЖНЫЙ-НЕСТАНДАРТНОГО РАЗМЕРА-4W (x=1670мм) - 1 шт; - KXA 17504-B-X-1600 A-КРЕПЕЖНЫЙ-НЕСТАНДАРТНОГО РАЗМЕРА-4W (x=1700мм) - 1 шт; - KXA 17504-B-X-1600 A-КРЕПЕЖНЫЙ-НЕСТАНДАРТНОГО РАЗМЕРА-4W (x=1950мм) - 1 шт; - KXA 17504-B-X-1600 A-КРЕПЕЖНЫЙ-НЕСТАНДАРТНОГО РАЗМЕРА-4W (x=1990мм) - 1 шт; - KXA 17504-B-X-1600 A-КРЕПЕЖНЫЙ-НЕСТАНДАРТНОГО РАЗМЕРА-4W (x=2200мм) - 1 шт; - KXA 17504-B-X-1600 A-КРЕПЕЖНЫЙ-НЕСТАНДАРТНОГО РАЗМЕРА-4W (x=2240мм) - 1 шт; - KXA 17504-B-X-1600 A-КРЕПЕЖНЫЙ-НЕСТАНДАРТНОГО РАЗМЕРА-4W (x=470мм) - 1 шт; - KXA 17504-B-X-1600 A-КРЕПЕЖНЫЙ-НЕСТАНДАРТНОГО РАЗМЕРА-4W (x=540мм) - 1 шт; - KXA 17504-B-X-1600 A-КРЕПЕЖНЫЙ-НЕСТАНДАРТНОГО РАЗМЕРА-4W (x=660мм) - 1 шт; - KXA 17504-B-X-1600 A-КРЕПЕЖНЫЙ-НЕСТАНДАРТНОГО РАЗМЕРА-4W (x=700мм) - 3 шт; - KXA 17504-B-X-1600 A-КРЕПЕЖНЫЙ-НЕСТАНДАРТНОГО РАЗМЕРА-4W (x=780мм) - 1 шт; - KXA 17504-B-X-1600 A-КРЕПЕЖНЫЙ-НЕСТАНДАРТНОГО РАЗМЕРА-4W (x=870мм) - 2 шт; - KXA 17504-B-YDT-1600 A-КРЕПЕЖНЫЙ-КОМПЕНСАЦИОННАЯ ГОРИЗОНТАЛЬНАЯ-4W - 2 шт; - KX-S-КОНЦЕВАЯ-4W-4.5W-5W (6x160)-A:211 - 4 шт
A19: 3 | B19: Монтаж выключателя автоматического | C19: шт | D19: =1+27+2 -> 30 | F19: - Выключатель автоматический KEAZ OptiMat-1600-S2-3P-85-F-MR7.0-B-C2200-M2-P00-S1-03 KEAZ -1 шт; - Авт. выкл. NM8N-800S TM 3P 630А 50кА с рег. термомаг. расцепителем (R) NM8N-800S TM CHINT - 27 шт; - Выключатель автоматический Протон М-25В-МР4 LSI-ВА50-45Про-1600А-85кА-3П-ГП 7005209 - 2 шт
A20: 4 | B20: Монтаж ответвительной коробки | C20: шт | D20: 27 | F20: - Коробка ответвительная КХР 6351-630 А-вставной-пусто-ЗР
B21: Монтаж узлов крепления шинопровода:
A22: 5 | B22: Монтаж настенного крепление шинопровода | C22: шт | D22: 132 | F22: - Комплект крепления несущего настенного - 132 шт в составе: • Консоль A-STS-D 810 3109013 (4,933 кг/шт) - 1 шт; • KX Соединительньй набор для кронштейна (1кг/копл) - 2 шт; • Стальной дюбель ЕАЕ M10 5000023 (0,07 кг/шт) - 2 шт;
A23: 6 | B23: Монтаж потолочного крепления шинопровода | C23: шт | D23: =172+8 -> 180 | F23: - Комплект крепления потолочного №1 - 172 шт в составе: • Деталь крепления TP 2 3006350 (вес 0,134 кг/шт) - 2 шт; • Болт M10 1000566 - 6 шт; • Гайка M10 1000522 - 6 шт; • Шайба M10 1000504 - 10 шт; • M10 Скользящая гайка 1001312 (вес 0,039 кг/шт) - 2 шт; • Потолочная монтажная стойка UDD 1600 3008010 (вес 10,55 кг/шт)- 2 шт; • Соединитель для U-профиля U-65 3006642 - 1 шт; • Консоль A-STS-D 810 3109013 - 1 шт; • KX Соединительньй набор для кронштейна - 2 шт; • Защитный колпачок UDD 1002279 - 1 шт - Комплект крепления потолочного №2 - 8 шт в составе: • Распорный дюбель ЕАЕ (M12) 5000022 (вес 0,12 кг/шт) - 4 шт; • Потолочная монтажная стойка UPD 1200 3004523 (2,8 кг/шт) - 2 шт; • Болт M10 1000566 - 4 шт; • Гайка M10 1000522 - 4 шт; • Шайба M10 1000504 - 8 шт; • Консоль UDYB 550 3007991 (4,048 кг/шт) - 1 шт; • KX Соединительньй набор для кронштейна (1кг/копл) - 2 шт;
A24: 7 | B24: Монтаж узлов крепления для блоков питания | C24: шт | D24: =2 -> 2 | F24: - Комплект крепления блока питания - 2 шт в составе: • Деталь крепления TP 2 3006350 - 2 шт; • Болт M10 1000566 - 6 шт; • Гайка M10 1000522 - 6 шт; • Шайба M10 1000504 - 10 шт; • M10 Скользящая гайка 1001312 - 2 шт; • Потолочная монтажная стойка UDD 1600 3008010 - 2 шт; • Соединитель для U-профиля U-65 3006642 - 1 шт; • Консоль A-STS-D 810 3109013 - 1 шт; • KX Соединительньй набор для кронштейна - 2 шт; • Защитный колпачок UDD 1002279 - 1 шт
A25: 8 | B25: Монтаж узлов крепления для концевых коробок | C25: шт | D25: 4 | F25: - Комплект крепления концевых коробок - 4 шт в составе: • Распорный дюбель ЕАЕ (M12) 5000022 (вес 0,12 кг/шт) - 4 шт; • Потолочная монтажная стойка UPD 1200 3004523 (2,8 кг/шт) - 2 шт; • Болт M10 1000566 - 4 шт; • Гайка M10 1000522 - 4 шт; • Шайба M10 1000504 - 8 шт; • Консоль UDYB 1000 3007996 (7,031 кг/шт) - 1 шт
B26: Монтаж кабельных линий:
A27: 9 | B27: Монтаж кабеля силового | C27: м | D27: =80+80 -> 160 | F27: - Кабель силовой с медными жилами ВВГнг(А)-LS 1х185 мм2 - 160 м (без учета затрат на трудноустранимые потери)
A28: 10 | B28: Монтаж кабельной муфты | C28: шт | D28: =32+32 -> 64 | F28: - Кабельная муфта 1ПКТ-1-150/240(Б)нг-LS - 64 шт
B29: Пусконаладочные работы:
A30: 11 | B30: Пусконаладочные работы произвести согласно разработанной программе ПНР
B31: Внутреннее электрооборудование
B32: Монтаж щитов ШРНН-1.x; ШРНН-2.x:
A33: 12 | B33: Монтаж напольного шкафа 800х1600х400 | C33: шт | D33: 27 | F33: - Шкаф напольный Schneider Electric Spacial, 800x1600x400мм, IP55, сталь, NSYSM16840P Schneider Electric - 27 шт; - Провод ПВ-3 185 - 270 м (без учета затрат на трудноустранимые потери);
A34: 13 | B34: Установка в шкафу автоматических выключателей | C34: шт | D34: 135 | F34: - Автоматический выключатель NM8N-250C EN 3P 160А 36кА с электр. расцепителем (R) NM8N-250C EN CHINT - 135 шт
A35: 14 | B35: Установка в шкафу медных шин | C35: шт | D35: 14 | F35: - Шина медная (4 м) М1Т 5х50 IEK - 14 шт; - Изолятор силовой SM51 (М8) IEK - 108 шт
A36: 15 | B36: Монтаж кабеля силового с медными жилами, сечением 5х185 мм2 в металлический кабель канал | C36: м | D36: 216 | F36: - Кабель силовой с медными жилами и ПВХ-изоляцией и оболочкой нераспространяющей горения, и низким газо-дымовыделением сечением ВВГнг(А)-LS - 5х185 мм2 - 216 м (без учета затрат на трудноустранимые потери);
A37: 16 | B37: Монтаж кабельной муфты | C37: шт | D37: 108 | F37: - Кабельная муфта 5ПКТп-1-150/240 нг-LS - 108 шт
B38: Монтаж щита управления выключателя автоматического KEAZ OptiMat:
A39: 17 | B39: Монтаж щита распределительного ЩРН-12 (265х310х120) | C39: шт | D39: 1 | F39: - Щит распределительный ЩРН-12 (265х310х120) IP54 PROXIMA mb24-12 EKF - 1 шт
A40: 18 | B40: Монтаж кнопки управления | C40: шт | D40: 2 | F40: - Кнопка управления модульная OptiDin KM63-A-11-УХЛ3 KEAZ - 2 шт
A41: 19 | B41: Монтаж сигнальной лампы | C41: шт | D41: 1 | F41: - Лампа сигнальная OptiDin SL63-R-24AC/DC-УХЛ3 KEAZ - 1 шт
A42: 20 | B42: Прокладка трубы гофрированной | C42: м | D42: 8 | F42: - Труба гофр. ПВХ Plast с зондом d32мм - 8 м (без учета затрат на трудноустранимые потери); - Крепеж-клипса d 25 мм - 4 шт
A43: 21 | B43: Пркладка кабеля с креплением по всей длине | C43: м | D43: 1 | F43: - Кабель с медными токопроводящими жилами, изолированными полимером из поливинилхлоридного пластиката не содержащим галогенов и не выделяющим вредные для здоровья вещества при горении и тлении. ППГнг(A)-HF 2х2.5 - 2 м (без учета затрат на трудноустранимые потери);
A44: 22 | B44: Затягивание кабеля в проложенные трубы гофрированные в две нити | C44: м | D44: 32 | F44: Монтажный кабель, с медной луженой жилой, изоляцией и оболочкой из ПВХ пониженной пожарной опасности. МКШВнг (А) LS 1х2х1,0 - 32 м (без учета затрат на трудноустранимые потери)
B45: Монтаж лотковой кабельной системы:
A46: 23 | B46: Монтаж лотка неперфорированного замкового оцинкованного | C46: м | D46: =3*27 -> 81 | F46: - Лоток неперфорированный замковый оцинкованный ЛМЗ-200х100-1,0-3000 - 27 шт/81 м; - Крышка лотка замковая 200х1,0х3000 горячеоцинкованная КЛЗгц-200х15-1,0-3000 - 27 шт/81 м; - Угол горизонтальный замковый 90 град, ЛМЗУ-200х100-0,7-90-R-600 оцинкованный - 27 шт; - Крышка к углу плоскому замковому 90 градусов к кабельному лотку 200-0,7 КЛЗУ 200-0,7-90-ОЦ - 27 шт - Угол внутренний (подъем) замковый 45 град, ЛМЗП-200х100-0,7-45 оцинкованный - 27 шт; - Крышка к углу внутреннему (подъему) замковому к кабельному лотку 200-0,7 КЛЗП 200-0,7-90-ОЦ - 27 шт; - Узел крепления лотка - 54 шт в составе: • Страт профиль с 3-х сторонней перфорацией MSTPR 41х41х2,0 500 оцинк. CLIVE MSTPR41304105020ZS - 1 шт; • Страт профиль с 3-х сторонней перфорацией MSTPR 41х41х2,0 700 оцинк. CLIVE MSTPR41304107020ZS - 1 шт; • Заглушка страт профиля MSTZT 41х41 MSTZT10004141000 - 4 шт; • Пластина опорная для страт профиля MSTJF оцинк. CLIVE MSTJF11000000002ZS - 4 шт; • Гайка со стопорным кольцом FORNT М10 DIN985 (100шт) оцинк. FORNT10210100000ZS - 8 шт; • Шпилька FORSN М10х1000 DIN975 оцинк. FORSN10110100000ZS - 1 шт; • Шайба увеличенная FORWH М10 DIN9021 (100шт) оцинк. FORWH10210100000ZS - 4 шт; • Прижим лотка NL-PR-S ALSJF ALSJF10100000001 - 2 шт
B47: Система электроснабжения и автоматизации противодымной вентиляции
B48: Автоматизация системы противодымной вентиляции (приточная):
B49: Монтаж оборудования:
A50: 24 | B50: Монтаж шкафа управления системой вентиляции | C50: шт | D50: =3 -> 3 | F50: - Шкаф управления системами противодымной вентиляции ШКВАЛ 210-02200Р*1- 6К*1 - 3 шт;
A51: 25 | B51: Монтаж терминальной платы TRB-110 | C51: шт | D51: 6 | F51: - Терминальная плата TRB-110 - 6шт.
B52: Автоматизация системы противодымной вентиляции (вытяжная):
B53: Монтаж оборудования:
A54: 26 | B54: Монтаж шкафа управления пожарными люками | C54: шт | D54: =3 -> 3 | F54: - Шкаф управления пожарный люками дымовыми ШКВАЛ-ЛК-02- (ЦШ+ЦШ)-Х - 3 шт
A55: 27 | B55: Монтаж распределительной коробки | C55: шт | D55: 12 | F55: - Коробка распределительная огнестойкая КРОПС, IP41, габаритные размеры 80х80х35 мм, для кабелей сечением до 2,5 мм2, 6 клемм - 12 шт
B56: Монтаж кабельных линий:
A57: 28 | B57: Монтаж ответтвительной коробки с установкой в нее автоматического выключателя | C57: шт | D57: 6 | F57: - KXP 1651-160 A-ВСТАВНОЙ-ОТВЕТВИТЕЛЬНАЯ КОРОБКА-ПУСТО-3P-ПОДХОДИТ ДЛЯ АВТ (3016532) - 6шт. - Автоматический выключатель 63А, трехполюсный NXM-63H/3P 63А 50кА ® - 6шт.
A58: 29 | B58: Монтаж ответтвительной коробки с установкой в нее автоматического выключателя | C58: шт | D58: 1 | F58: - Ответвительная коробка KXP 1651-160 А - вставкой с компактным выключателем-3Р - 1 шт - Автоматический выключатель 16А, однополюсный NM8N-125C TM 1P 16А 36кА (R)
A59: 30 | B59: Прокладка гофрированной ПВХ трубы для защиты кабеля | C59: м | D59: =676+475+250 -> 1401 | F59: - Трубы из самозатухающего ПВХ гибкие гофрированные, тяжелые, с протяжкой, номинальный внутренний диаметр 16 мм - 676 м (без учета затрат на трудноустранимые потери); - Скоба металлическая однолапковая 16мм - 1146шт; - Трубы из самозатухающего ПВХ гибкие гофрированные, тяжелые, с протяжкой, номинальный внутренний диаметр 25 мм - 475 м (без учета затрат на трудноустранимые потери); - Скоба металлическая однолапковая 25мм - 435шт; - Трубы из самозатухающего ПВХ гибкие гофрированные, тяжелые, с протяжкой, номинальный внутренний диаметр 40 мм - 250 м (без учета затрат на трудноустранимые потери); - Скоба металлическая однолапковая 40мм - 750шт; - Дюбель распорный универсальный полипропиленовый - 2331шт; - Саморез - 2331шт; - Стальные стяжки FORTISFLEX СКС 304 7.9х1000 (упаковка 100шт.) -7шт.
A60: 31 | B60: Затягивание кабеля в проложенную гофротрубу | C60: м | D60: =D59 -> 1401 | F60: - Кабель силовой не распространяющий горения, не содержащий галогенов ППГнг-А-FRHF 5х16 - 250 м (без учета затрат на трудноустранимые потери); - Кабель силовой не распространяющий горения, не содержащий галогенов ППГнг-А-FRHF 2х16 - 300 м (без учета затрат на трудноустранимые потери); - Кабель силовой не распространяющий горения, не содержащий галогенов ППГнг-А-FRHF 4х10 - 30 м (без учета затрат на трудноустранимые потери); - Кабель силовой не распространяющий горения, не содержащий галогенов ППГнг-А-FRHF 3х2,5 - 145 м (без учета затрат на трудноустранимые потери); - Кабель силовой не распространяющий горения, не содержащий галогенов ППГнг-А-FRHF 3х1,5 - 60 м (без учета затрат на трудноустранимые потери); - Кабель для систем ОПС и СОУЭ огнестойкий, не поддерживающий горения, неэкранированный КПСнг(А)-FRLS 1х2х1,0 - 546 м (без учета затрат на трудноустранимые потери); - Кабель для систем ОПС и СОУЭ огнестойкий, не поддерживающий горения, неэкранированный КПСЭнг(А)-FRLS 2х2х1,0 - 130 м (без учета затрат на трудноустранимые потери);
A61: 32 | B61: Монтаж гильз из стальной тубы для прохода кабеля | C61: м | D61: 5 | F61: - Труба стальная водогазопроводная 50х3,5 - 5 м
A62: 33 | B62: Герметизация проходов | C62: шт | D62: 10 | F62: - Пена противопожарная, марка "PROMAFOAM-C" (700 мл) - 1 шт
A63: 34 | B63: Монтаж устройства дистанционного пуска «УДП 513-3АМ исп.02» | C63: шт | D63: 6 | F63: -Устройство дистанционного пуска «УДП 513-3АМ исп.02» - 6 шт.
A64: 35 | B64: Монтаж блока сигнально-пускового С2000 КПБ | C64: шт | D64: 1 | F64: - Блок сигнально-пусковой С2000 КПБ – 1 шт.
A65: 36 | B65: Монтаж устройства коммутационного УК-ВК/02 | C65: шт | D65: 4 | F65: - Устройство коммутационное УК-ВК/02
A66: 37 | B66: Монтаж модуля подключения нагрузки | C66: шт | D66: 4 | F66: - Модуль подключения нагрузки - 4шт
B67: Противодымная вентиляция.
B68: Противодымная вентиляция (приточная):
A69: 38 | B69: Монтаж стенового клапана "Гермик-ДУ-3-1700х1700 в проектируемый проем в кирпичной стене | C69: шт. | D69: 2 | F69: Стеновой клапан "Гермик-ДУ-3-1700х1700-1ф-МV220-СВ" живое сечение 2,075 м2
A70: 39 | B70: Монтаж стенового клапана "Гермик-ДУ-3-1700х1700 частично в проектируемый проем в стене, частично вместо витражного остекления | C70: шт. | D70: 2 | F70: Стеновой клапан "Гермик-ДУ-3-1700х1700-1ф-МV220-СВ" живое сечение 2,075 м2
A71: 40 | B71: Установка вентиляторов "Веза ВРАН 9 ДУВ 125 Л270 У1 N=30кВт" снаружи здания на ж/б основание | C71: шт. | D71: 4 | F71: в комлекте с решеткой
A72: 41 | B72: Прокладка воздуховодов из листовой оцинкованной стали | C72: м2 | D72: 16.04 | F72: Переход 1700х1700/900х1600 - 4 шт (16,04 м2)
B73: Противодымная вентиляция (вытяжная):
A74: 42 | B74: Монтаж клапана "Веза" Дымозор-100-1500х1500-У-3000-230-Р-С, с утепленной крышкой и защитой от промерзания в покрытие кровли | C74: шт. | D74: 18 | F74: Клапан "Веза" Дымозор-100-1500х1500-У-3000-230-Р-С - 18шт
B75: Система пожарной сигнализации. Система оповещения и управления эвакуацией людей при пожаре
B76: Монтаж оборудования по пожарной сигнализации:
A77: 43 | B77: Установка пожарного шкафа сигнализации ШПС-12 исп.12 на стене h=1,5м | C77: шт | D77: 1 | F77: Шкаф пожарной сигнализации "ШПС-12" исп.12 ЗАО НВП "Болид"
A78: 44 | B78: Установка аккумулятора 12В, 17 Ач (АБ1217С) в ШПС-12 исп.12 | C78: шт | D78: 2 | F78: Аккумулятор 12В, 17 Ач (АБ1217С) срок службы 12 лет АБ1217С ЗАО НВП "Болид"
A79: 45 | B79: Установка ППКУП «Сириус» на стене h=1,5м | C79: шт | D79: 1 | F79: Прибор приемно-контрольный и управления пожарный "Сириус" ЗАО НВП "Болид"
A80: 46 | B80: Установка аккумулятора 12В, 17 Ач (АБ1217С) в Сириус | C80: шт | D80: 2 | F80: Аккумулятор 12В, 17 Ач (АБ1217С) срок службы 12 лет АБ1217С ЗАО НВП "Болид"
A81: 47 | B81: Монтаж извещателя пожарного ручного электронного ИПР 513-3АМ исп.1 на стене h=1,5м | C81: шт | D81: 13 | F81: Извещатель пожарный ручной электронный ИПР 513-3АМ исп.1 ЗАО НВП "Болид"
A82: 48 | B82: Монтаж извещателя пожарного дымового оптико-электронного аналогово-адресного со встроенным изолятором короткого замыкания ДИП-34А-04 на высоте свыше 2 до 5м | C82: шт | D82: 41 | F82: Извещатель пожарный дымовой оптико-электронный аналогово-адресный со встроенным изолятором короткого замыкания ДИП-34А-04 ЗАО НВП "Болид"
A83: 49 | B83: Монтаж извещателя пожарного дымового оптико-электронного линейного С2000-ИПДЛ исп. 120 на высоте от 5 до 15м | C83: шт | D83: 16 | F83: Извещатель пожарный дымовой оптико-электронный линейный С2000-ИПДЛ исп. 120 ЗАО НВП "Болид"
A84: 50 | B84: Монтаж блока контрольно-пускового С2000-КПБ в ШПС-12 исп.12 | C84: шт | D84: 1 | F84: Блок контрольно-пусковой С2000-КПБ ЗАО НВП "Болид"
A85: 51 | B85: Монтаж блока разветвительно-изолирующего БРИЗ на высоте от 5 до 15м | C85: шт | D85: 3 | F85: Блок разветвительно-изолирующий БРИЗ ЗАО НВП "Болид"
A86: 52 | B86: Монтаж извещателя пожарного дымового оптико-электронного аналогово-адресного со встроенным изолятором короткого замыкания ДИП-34А-03 на высоте свыше 2 до 5м | C86: шт | D86: 2 | F86: Извещатель пожарный дымовой оптико-электронный аналогово-адресный взрывозащищённый ДИП-34А-03-Exi ЗАО НВП "Болид"
A87: 53 | B87: Монтаж барьера искрозащитного С2000-Спектрон-ИБ на высоте от 2 до 5 м | C87: шт | D87: 1 | F87: Барьер искрозащитный С2000-Спектрон-ИБ ЗАО НВП "Болид"
A88: 54 | B88: Монтаж устройства устройства коммутационного УК-Ех на высоте от 2 до 5 м | C88: шт | D88: 2 | F88: Устройство коммутационное УК-Ех ЗАО НВП "Болид"
B89: Оборудования оповещения и управления эвакуацией людей при пожаре:
A90: 55 | B90: Монтаж блока речевого оповещения Рупор-300 на стене h=1,5м | C90: шт | D90: 8 | F90: Блок речевого оповещения Рупор-300 ЗАО НВП "Болид"
A91: 56 | B91: Установка аккумулятора 12В, 9 Ач (АБ1217С) в Рупор-300 | C91: шт | D91: 16 | F91: Аккумулятор 12В, 17 Ач (АБ1217С) срок службы 12 лет АБ1217С ЗАО НВП "Болид"
A92: 57 | B92: Монтаж адресного модуля контроля линий Рупор-300-МК на высоте 2м | C92: шт | D92: 12 | F92: Адресный модуль контроля линий Рупор-300-МК ЗАО НВП "Болид"
A93: 58 | B93: Монтаж оповещателя пожарного речевого всепогодного ОПР-У150.1 на высоте 2,3 | C93: шт | D93: 54 | F93: Оповещатель пожарный речевой всепогодный ОПР-У150.1 ЗАО НВП "Болид"
A94: 59 | B94: Монтаж оповещателя пожарного речевого всепогодного Прометей-ГВР-Exd-10 на высоте 2,3 м | C94: шт | D94: 1 | F94: Оповещатель пожарный речевой взрывозащищенный IP65 Прометей-ГВР-Exd-10 СПЕКТРОН ТПП ООО
A95: 60 | B95: Монтаж опопвещателя светового табличного адресного С2000-ОСТ исп.01 на высоте от 2 до 5 м | C95: шт | D95: 10 | F95: Опопвещатель световой табличный адресный С2000-ОСТ исп.01 "ВЫХОД" ЗАО НВП "Болид"
B96: Монтаж проводов, кабелей и аксессуаров пожарной сигнализации:
A97: 61 | B97: Монтаж гофрированной ПВХ трубы Ду 16 мм с протяжкой без галогена ПЛЛ ПВ-0 на высоте от 2 до 5 м | C97: м | D97: 1185 | F97: -Труба гофрированная ПВХ диаметром 16 мм с протяжкой без галогена ПЛЛ ПВ-0 - 1185 м (без учета затрат на трудноустранимые потери); - Дюбель распорный универсальный полипропиленовый -3555 шт; - Саморез - 3555 шт; - Скоба металлическая однолапковая - 3555 шт; - Хомут из нержавеющей стали AISI 304 4,6х150 мм (вес 0,002 кг/шт)- 3555 шт
A98: 62 | B98: Затяжка кабеля КПСЭнг(А) FRLS 1х2x0,75 в трубу гофрированную | C98: м | D98: 1185 | F98: Кабель КПСЭнг(А) FRLS 1х2x0,75 - 1185 м (без учета затрат на трудноустранимые потери)
A99: 63 | B99: Монтаж гофрированной ПВХ трубы Ду 16 мм с протяжкой без галогена ПЛЛ ПВ-0 на высоте от 5 до 15 м | C99: м | D99: 1625 | F99: - Труба гофрированная ПВХ диаметром 16 мм с протяжкой без галогена ПЛЛ ПВ-0 - 1625 м (без учета затрат на трудноустранимые потери); - Дюбель распорный универсальный полипропиленовый - 4875 шт; - Саморез - 4875 шт; - Скоба металлическая однолапковая - 4875 шт; - Хомут из нержавеющей стали AISI 304 4,6х150 мм (вес 0,002 кг/шт) - 4875 шт
A100: 64 | B100: Затяжка кабеля КПСнг(А) FRLS 1х2x1 в трубу гофрированную | C100: м | D100: 1625 | F100: Кабель КПСнг(А) FRLS 1х2x1 - 1625 м (без учета затрат на трудноустранимые потери)
A101: 65 | B101: Монтаж гофрированной ПВХ трубы Ду 16 мм с протяжкой без галогена ПЛЛ ПВ-0 на высоте от 5 до 15 м | C101: м | D101: 260 | F101: -Труба гофрированная ПВХ диаметром 16 мм с протяжкой без галогена ПЛЛ ПВ-0 - 260 м (без учета затрат на трудноустранимые потери); - Дюбель распорный универсальный полипропиленовый - 780 шт; - Саморез - 780 шт; - Скоба металлическая однолапковая - 780 шт; - Хомут из нержавеющей стали AISI 304 4,6х150 мм (вес 0,002 кг/шт) - 780 шт
A102: 66 | B102: Затяжка кабеля КПСЭнг(А) FRLS 2х2x1 в трубу гофрированную | C102: м | D102: 260 | F102: Кабель КПСЭнг(А) FRLS 2х2x1 - 250 м (без учета затрат на трудноустранимые потери)
A103: 67 | B103: Монтаж кабельного канала из поливинилхлоридной композиции, неперфорированный, типоразмер 20х10 на высоте 2м | C103: м | D103: 30 | F103: - Кабельканал 20х10 мм - 30 м (без учета затрат на трудноустранимые потери); - Саморез - 90 шт
A104: 68 | B104: Укладка кабеля КПСЭнг(А) FRLS 2х2x1 в кабель-канал 20х10 | C104: м | D104: 30 | F104: Кабель КПСЭнг(А) FRLS 2х2x1 - 30 м (без учета затрат на трудноустранимые потери)
A105: 69 | B105: Монтаж джек RJ-45 8P-8C FD-6034 | C105: шт | D105: 2 | F105: Разъем Джек RJ-45 8P-8C CAT5e категории 5е под витую пару - 2 шт
A106: 70 | B106: Установка коробки огнестойкой для о/п 40-0210-FR1.5-4 Е15-Е120 RAL2004 80х80х40 на высоте 2,3 м | C106: шт | D106: 1 | F106: Коробка огнестойкая для о/п 40-0210-FR1.5-4 Е15-Е120 RAL2004 80х80х40 Промрукав - 4 шт
A107: 71 | B107: Сверление отверстий в кирпичных перегородках толщ. 0,5м под стальную трубу Ду50 | C107: шт /м | D107: 20/0,5
A108: 72 | B108: Монтаж в перегородки трубы стальной водогазопроводной Ду 50 (гильза) | C108: шт /м | D108: 20/10 | F108: Трубы ВГП обыкновенные 50х3,5 мм - 10 м
A109: 73 | B109: Заделка проходов пеной однокомпонентной огнезащитной баллон 750мл | C109: шт | D109: 20 | F109: REMONTIX PRO ОГНЕСТОЙКАЯ пистолетная монтажная пена, 750 мл - 2 шт
B110: Внутренний водосток
B111: Демонтажные работы:
A112: 74 | B112: Демонтаж трубопровода стального Ф108х4,0 | C112: м | D112: 460
B113: Монтажные работы:
A114: 75 | B114: Монтаж системы внутреннего водостока диаметром 110 мм | C114: м | D114: 79 | F114: - Труба полиэтиленовая ПЭ-100 SDR26 DN110×4,2 питьевая ГОСТ 18599-2001 - 79 м; - Патрубок компенсационный ТП-110 SDR 26 - 36 шт; - Отвод ПНД сварной сегментный d110 45° ПЭ100 SDR26 ГОСТ 18599-2001 - 36 шт; - Тройник ПНД сварной сегментный d110 45° ПЭ100 SDR26 ГОСТ 18599-2001 - 4 шт; - Заглушка литая ПНД d110 ПЭ100 SDR11 ГОСТ 18599-2001 - 4 шт; - Хомут КТР 108 с гайкой М16 - 52 шт; - Шпилька М16х1000 (вес 1,33 кг/шт) - 52 шт; - Гайка М16 - 52 шт; - Шайба М16 - 52 шт
A115: 76 | B115: Монтаж системы внутреннего водостока диаметром 160 мм | C115: м | D115: 96 | F115: - Труба полиэтиленовая ПЭ-100 SDR26 DN160×6,2 питьевая ГОСТ 18599-2001 - 96 м; - Отвод ПНД сварной сегментный d160 45° ПЭ100 SDR26 ГОСТ 18599-2001 - 8 шт; - Тройник ПНД сварной сегментный d160х110х160 45° ПЭ100 SDR26 ГОСТ 18599-2001 - 4 шт; - Тройник ПНД сварной сегментный d160х160х160 45° ПЭ100 SDR26 ГОСТ 18599-2001 - 8 шт; - Заглушка литая ПНД d160 ПЭ100 SDR11 ГОСТ 18599-2001 - 8 шт; - Переход ПНД сварной d160х110 ПЭ100 SDR26 - 4 шт - Хомут КТР 159 с гайкой М16 - 64 шт; - Шпилька М16х1000 (вес 1,33 кг/шт) - 64 шт; - Гайка М16 - 64 шт; - Шайба М16 - 64 шт
A116: 77 | B116: Монтаж системы внутреннего водостока диаметром 200 мм | C116: м | D116: 285 | F116: - Труба полиэтиленовая ПЭ-100 SDR26 DN200×7,7 питьевая ГОСТ 18599-2001 - 285 м; - Отвод ПНД сварной сегментный d200 45° ПЭ100 SDR26 - 14 шт; - Заглушка литая ПНД d200 ПЭ100 SDR11 ГОСТ 18599-2001 - 18 шт; - Тройник ПНД сварной сегментный d200 45° ПЭ100 SDR26 ГОСТ 18599-2001 - 14 шт; - Тройник ПНД сварной d200 90° ПЭ100 SDR26 ГОСТ 18599-2001 - 4 шт; - Тройник ПНД сварной сегментный d200х110х200 45° ПЭ100 SDR26 ГОСТ 18599-2001 - 24 шт; - Переход ПНД сварной d200х160 ПЭ100 SDR26 ГОСТ 18599-2001 - 4 шт; - Переход ПНД/КОРСИС DN200 ГОСТ 18599-2001 - 4 шт; - Хомут ТКР-219 - 162 шт; - Шпилька М16х1000 (вес 1,33 кг/шт) - 162 шт; - Гайка М16 - 162 шт; - Шайба М16 - 162 шт
B117: Наружный водосток
B118: Земляные работы:
A119: 78 | B119: Разработка грунта экскаватором для прокладки трубопроводов канализации | C119: м3 | D119: 30.7 | F119: На глубину 1,3 м. - с погрузкой в а/самосвалы = 2,8м3, - в отвал 27,9м3
A120: 79 | B120: Разработка грунта вручную для прокладки трубопроводов канализации | C120: м3 | D120: 30.7 | F120: На глубину 1,3 м
A121: 80 | B121: Устройство песчанного основания под трубопровод толщиной 100 мм | C121: м3 | D121: 2.8 | F121: Песок природный для строительных: работ средний с крупностью зерен размером свыше 5 мм-до 5% по массе
A122: 81 | B122: Обратная засыпка траншеи ранее разработанным грунтом при помощи экскаватора | C122: м3 | D122: 58.6
A123: 82 | B123: Вывоз и утилизация излишнеотработанного грунта | C123: т | D123: 4.9 | F123: Уточнить у Заказчика место складирования и его удаленность от объекта производства работ
B124: Строительные работы:
A125: 83 | B125: Укладка канализационных труб диаметром 200 мм | C125: м | D125: 36 | F125: - Труба КОРСИС ПРО DN/OD 200 SN16 - 36 м
A126: 84 | B126: Пробивка в стенках колодца отверстий для прохода труб | C126: шт | D126: 8 | F126: - отверстия диаметром 200 мм - 8 шт
A127: 85 | B127: Монтаж защитных муфт | C127: шт/т | D127: 8 / 0,01 | F127: -Муфта Корсис для прохода через ЖБИ DN/OD 200, вес 0,8кг/шт.
B128: Пусконаладочные работы. Система пожарной сигнализации. Система оповещения и управления эвакуацией людей при пожаре.
A129: 86 | B129: Проведение пусконаладочных работ автоматизированной системы 1 категории с общим количеством каналов 75,37 | C129: система | D129: 1
B130: Пусконаладочные работы ЭМ и ЭС
A131: 87 | B131: Замер полного сопротивления цепи "фаза-ноль" | C131: измерение | D131: =5+7 -> 12
A132: 88 | B132: Измерение преходных сопротивлений постоянному току шин распределительных устройств напряжением 0,4 кВ | C132: измерение | D132: 5
A133: 89 | B133: Фазировка электрической линии или трансформатора с сетью напряжением до 1 кВ | C133: шт | D133: =3+6 -> 9
A134: 90 | B134: Проверка наличия цепи между заземлителями и заземленными элементами | C134: измерение | D134: =5+6 -> 11
A135: 91 | B135: Испытание аппарата коммутационного напряжением до 1 кВ (силовых цепей) | C135: измерение | D135: =1+7 -> 8
A136: 92 | B136: Испытание сборных и соединительных шин напряжением до 1 кВ | C136: измерение | D136: 3
A137: 93 | B137: Испытание кабеля силового длиной до 500 м напряжением до 1 кВ | C137: измерение | D137: =3+7 -> 10
B142: Составил:
B144: Ведущий специалист ОпС АО "Коломенский Завод" | E144: Самойлов А.О.
B145: (должность) | E145: (подпись) (ФИО)
B146: "_____" _________ 2025 г.
B148: Проверил:
B149: Начальник отдела по строительству АО "Коломенский Завод"
B150: (должность) | E150: Губанов П.В.
B151: "_____" _________ 2025 г. | E151: (подпись) (ФИО)

Sheet Лист2
B6: 8.475 | C6: =(0.45*4) -> 1.8 | D6: =C6/0.2 -> 9 | E6: =(D6*B6)*2 -> 152.55
B7: 8.8 | C7: =24-(0.45*4) -> 22.2 | D7: =C7/0.2 -> 111 | E7: =(D7*B7)*2 -> 1953.6 | G7: =E7+E6 -> 2106.15
G8: =E9+E10 -> 2052.11875
B9: 5.575 | C9: =0.325 -> 0.325 | D9: =C9/0.2 -> 1.625 | E9: =(D9*B9)*2 -> 18.11875
B10: 24 | C10: =8.475 -> 8.475 | D10: =C10/0.2 -> 42.375 | E10: =(D10*B10)*2 -> 2034 | G10: 0.888 | H10: =((E6+E7+E9+E10)*G10)*0.001 -> 3.69254265
H14: =0.25*0.125*0.025 -> 0.00078125 | O14: =3.14*0.84 -> 2.6376
I16: =H14*61 -> 0.04765625 | O16: =0.125*4 -> 0.5
J17: =I16*3 -> 0.14296875
E18: 1 | F18: 0.2 | G18: =E18/F18 -> 5 | K18: =J17*2 -> 0.2859375 | O18: =O14*O16 -> 1.3188 | Q18: =O18*2 -> 2.6376
E19: 1 | F19: 0.2 | G19: =E19/F19 -> 5 | H19: =(G18+G19)*G10 -> 8.88
B25: =382060/19103 -> 20
B26: =477575/19103 -> 25
